bitfinex-derivatives/quotes_BNBF0:USTF0_20250130
["timestamp","ask_amount","ask_price","bid_price","bid_amount"]
[1738280669294,1.09669963,678.5,678.34,0.79457435]
[1738280669496,1.09669963,678.5,678.35,0.79457435]
[1738280669692,1.09669963,678.5,678.36,0.79457435]
[1738280669997,1.09669963,678.5,678.37,0.79457435]
[1738280670296,1.09669963,678.5,678.38,0.79457435]
[1738280670593,1.09669963,678.5,678.28,1.057]
[1738280670594,1.09669963,678.5,678.39,0.79457435]
[1738280670797,1.09669963,678.5,678.4,0.79457435]
[1738280670997,1.09669963,678.5,678.41,0.79457435]
[1738280671192,1.09669963,678.5,678.42,0.79457435]
[1738280671393,1.09669963,678.5,678.43,0.79457435]
[1738280671592,1.09669963,678.5,678.44,0.79457435]
[1738280671795,1.09669963,678.5,678.45,0.79457435]
[1738280671996,1.09669963,678.5,678.46,0.79457435]
[1738280672194,1.09669963,678.51,678.47,0.79457435]
[1738280672399,1.09669963,678.51,678.28,1.057]
[1738280672693,1.09669963,678.51,678.29,0.79454513]
[1738280672898,1.09669963,678.51,678.3,0.79454513]
[1738280673098,1.09669963,678.51,678.31,0.79454513]
[1738280673297,1.09669963,678.51,678.28,1.057]
[1738280673298,1.09669963,678.51,678.32,0.79454513]
[1738280673497,1.09669963,678.51,678.33,0.79454513]
[1738280673697,1.09669963,678.51,678.34,0.79454513]
[1738280673896,1.09669963,678.51,678.35,0.79454513]
[1738280674093,1.09669963,678.51,678.36,0.79454513]
[1738280674293,1.09669963,678.51,678.37,0.79454513]
[1738280674500,1.09669963,678.51,678.38,0.79454513]
[1738280674699,1.09669963,678.51,678.39,0.79452952]
[1738280675001,1.09669963,678.51,678.4,0.79452952]
[1738280675197,1.09669963,678.51,678.41,0.79452952]
[1738280675394,1.09669963,678.51,678.28,1.057]
[1738280675395,1.09669963,678.51,678.42,0.79452952]
[1738280675599,1.09669963,678.51,678.43,0.79452952]
[1738280675799,1.09669963,678.51,678.44,0.79452952]
[1738280675993,1.09669963,678.51,678.45,0.79452952]
[1738280676198,1.09669963,678.51,678.46,0.79452952]
[1738280676396,1.09669963,678.51,678.28,1.057]
[1738280676601,1.09669963,678.51,678.29,0.79451577]
[1738280676798,1.09669963,678.51,678.3,0.79451577]
[1738280677001,1.09669963,678.51,678.31,0.79451577]
[1738280677199,1.09669963,678.51,678.32,0.79451577]
[1738280677398,1.09669963,678.51,678.33,0.79451577]
[1738280677596,1.09669963,678.51,678.34,0.79451577]
[1738280677801,1.09669963,678.51,678.35,0.79451577]
[1738280678005,1.09669963,678.51,678.36,0.79451577]
[1738280678200,1.09669963,678.51,678.37,0.79451577]
[1738280678406,1.09669963,678.51,678.38,0.79451577]
[1738280678598,1.09669963,678.51,678.28,1.057]
[1738280678599,1.09669963,678.51,678.39,0.79451331]
[1738280678805,1.09669963,678.49,678.4,0.79451331]
[1738280679000,1.09669963,678.49,678.41,0.79451331]
[1738280679301,1.09669963,678.49,678.42,0.79451331]
[1738280679505,1.09669963,678.49,678.43,0.79451331]
[1738280679705,1.09669963,678.49,678.44,0.79451331]
[1738280679905,1.09669963,678.49,678.45,0.79451331]
[1738280680205,1.09669963,678.49,678.46,0.79451331]
[1738280680405,1.09669963,678.49,678.47,0.79451331]
[1738280680600,1.09669963,678.49,678.28,1.057]
[1738280680806,1.09669963,678.49,678.29,0.79452261]
[1738280681107,1.09669963,678.49,678.3,0.79452261]
[1738280681307,1.09669963,678.49,678.31,0.79452261]
[1738280681503,1.09669963,678.49,678.32,0.79452261]
[1738280681707,1.09669963,678.49,678.33,0.79452261]
[1738280681910,1.09669963,678.62,678.34,0.79452261]
[1738280682207,1.09669963,678.62,678.35,0.79452261]
[1738280682403,1.09669963,678.62,678.36,0.79452261]
[1738280682606,1.09669963,678.62,678.37,0.79452261]
[1738280682809,1.09669963,678.62,678.28,1.057]
[1738280682810,1.09669963,678.62,678.38,0.79452261]
[1738280683009,1.09669963,678.62,678.39,0.79452261]
[1738280683311,1.09669963,678.62,678.4,0.79451933]
[1738280683608,1.09669963,678.62,678.41,0.79451933]
[1738280683809,1.09669963,678.62,678.42,0.79451933]
[1738280684107,1.09669963,678.62,678.43,0.79451933]
[1738280684306,1.09669963,678.62,678.44,0.79451933]
[1738280684505,1.09669963,678.62,678.45,0.79451933]
[1738280684701,1.09669963,678.62,678.28,1.057]
[1738280684906,1.09669963,678.62,678.29,0.79454503]
[1738280685106,1.09669963,678.62,678.28,1.057]
[1738280685308,1.09669963,678.64,678.29,0.79455214]
[1738280685507,1.09669963,678.64,678.3,0.79455214]
[1738280685704,1.09669963,678.64,678.31,0.79455214]
[1738280685905,1.09669963,678.64,678.32,0.79455214]
[1738280686108,1.09669963,678.64,678.28,1.057]
[1738280686109,1.09669963,678.64,678.33,0.79455214]
[1738280686309,1.09669963,678.64,678.34,0.79455214]
[1738280686509,1.09669963,678.64,678.35,0.79455214]
[1738280686810,1.09669963,678.64,678.36,0.79455214]
[1738280687009,1.09669963,678.64,678.37,0.79455214]
[1738280687208,1.09669963,678.64,678.38,0.79455214]
[1738280687407,1.09669963,678.64,678.39,0.79455214]
[1738280687606,1.09669963,678.64,678.28,1.057]
[1738280687607,1.09669963,678.64,678.4,0.79455214]
[1738280687809,0.27093026,678.63,678.41,0.79455214]
[1738280688008,0.27093026,678.63,678.42,0.79455214]
[1738280688208,0.27093026,678.63,678.43,0.79455214]
[1738280688402,0.27093026,678.63,678.44,0.79455214]
[1738280688608,0.27093026,678.63,678.45,0.79455214]
[1738280688809,1.09669963,678.62,678.28,1.057]
[1738280689109,1.09669963,678.62,678.29,0.79456669]
[1738280689310,1.09669963,678.62,678.3,0.79456669]
[1738280689505,1.09669963,678.62,678.31,0.79456669]
[1738280689707,1.09669963,678.62,678.32,0.79456669]
[1738280689906,1.09669963,678.62,678.33,0.79456669]
[1738280690106,1.09669963,678.62,678.34,0.79456669]
[1738280690310,1.09669963,678.62,678.35,0.79456669]
[1738280690608,1.09669963,678.62,678.36,0.79456669]
[1738280690807,1.09669963,678.62,678.37,0.79456669]
[1738280691007,1.09669963,678.62,678.38,0.79456669]
[1738280691213,1.09669963,678.62,678.39,0.79456669]
[1738280691512,1.09669963,678.62,678.4,0.79456669]
[1738280691714,1.09669963,678.62,678.41,0.79456669]
[1738280692007,1.09669963,678.62,678.42,0.79456669]
[1738280692213,1.09669963,678.62,678.43,0.79456669]
[1738280692409,1.09669963,678.53,678.44,0.79456669]
[1738280692612,1.09669963,678.53,678.45,0.79456669]
[1738280692808,1.09669963,678.53,678.28,1.057]
[1738280693014,1.09669963,678.53,678.29,0.79458109]
[1738280693210,1.09669963,678.53,678.3,0.79458109]
[1738280693411,1.09669963,678.53,678.31,0.79458109]
[1738280693608,1.09669963,678.53,678.32,0.79458109]
[1738280693811,1.09669963,678.53,678.33,0.79458109]
[1738280694007,1.09669963,678.53,678.34,0.79458109]
[1738280694209,1.09669963,678.53,678.35,0.79458109]
[1738280694412,1.09669963,678.53,678.36,0.79458109]
[1738280694610,1.09669963,678.53,678.37,0.79458109]
[1738280694810,1.09669963,678.53,678.38,0.79458109]
[1738280695015,1.09669963,678.53,678.39,0.79458109]
[1738280695214,1.09669963,678.53,678.4,0.79458109]
[1738280695414,1.09669963,678.53,678.41,0.79458109]
[1738280695714,1.09669963,678.53,678.42,0.79458109]
[1738280696015,1.09669963,678.66,678.43,0.79458109]
[1738280696214,1.09669963,678.66,678.44,0.79458109]
[1738280696416,1.09669963,678.66,678.35,0.905]
[1738280696710,1.09669963,678.66,678.36,0.79460613]
[1738280696910,1.09669963,678.66,678.37,0.79460613]
[1738280697214,1.09669963,678.66,678.38,0.79460613]
[1738280697415,1.09669963,678.66,678.39,0.79460613]
[1738280697613,1.09669963,678.66,678.4,0.79460613]
[1738280697812,1.09669963,678.66,678.41,0.79460613]
[1738280698010,1.09669963,678.66,678.42,0.79460613]
[1738280698212,1.09669963,678.66,678.43,0.79460613]
[1738280698408,1.09669963,678.66,678.44,0.79460613]
[1738280698609,1.09669963,678.65,678.35,0.905]
[1738280698912,1.09669963,678.65,678.36,0.79459983]
[1738280699208,1.09669963,678.65,678.35,0.905]
[1738280699209,1.09669963,678.65,678.37,0.79459983]
[1738280699408,1.09669963,678.65,678.38,0.79459983]
[1738280699612,1.09669963,678.65,678.39,0.79459199]
[1738280699813,1.09669963,678.65,678.4,0.79459199]
[1738280700013,1.09669963,678.65,678.41,0.79459199]
[1738280700212,1.09669963,678.65,678.42,0.79459145]
[1738280700411,1.09669963,678.65,678.43,0.79459145]
[1738280700615,1.09669963,678.65,678.44,0.79459145]
[1738280700819,1.09669963,678.65,678.35,0.905]
[1738280701015,1.09669963,678.65,678.36,0.79460764]
[1738280701211,1.09669963,678.65,678.35,0.905]
[1738280701517,1.09669963,678.65,678.36,0.79460695]
[1738280701717,1.09669963,678.65,678.37,0.79460695]
[1738280701918,1.09669963,678.65,678.38,0.79460695]
[1738280702112,1.09669963,678.65,678.39,0.79460695]
[1738280702316,1.09669963,678.66,678.4,0.79460695]
[1738280702513,1.09669963,678.66,678.41,0.79460695]
[1738280702717,1.09669963,678.66,678.42,0.79460695]
[1738280702914,1.09669963,678.66,678.35,0.905]
[1738280703213,1.09669963,678.66,678.36,0.79457916]
[1738280703412,1.09669963,678.66,678.37,0.79457916]
[1738280703612,1.09669963,678.66,678.38,0.79457916]
[1738280703818,1.09669963,678.66,678.39,0.79457916]
[1738280704014,1.09669963,678.66,678.4,0.79457916]
[1738280704218,1.09669963,678.66,678.41,0.79457916]
[1738280704412,1.09669963,678.66,678.35,0.905]
[1738280704618,1.09669963,678.66,678.36,0.7945526]
[1738280704814,1.09669963,678.66,678.37,0.7945526]
[1738280705119,1.09669963,678.66,678.38,0.7945526]
[1738280705316,1.09669963,678.66,678.39,0.7945526]
[1738280705513,1.09669963,678.66,678.4,0.7945526]
[1738280705817,1.09669963,678.66,678.41,0.7945526]
[1738280706018,1.09669963,678.74,678.35,0.905]
[1738280706220,1.09669963,678.74,678.36,0.79453672]
[1738280706413,1.09669963,678.74,678.37,0.79453672]
[1738280706614,1.09669963,678.74,678.38,0.79453672]
[1738280706812,1.09669963,678.74,678.39,0.79453672]
[1738280707017,1.09669963,678.74,678.4,0.79453672]
[1738280707218,1.09669963,678.74,678.41,0.79453672]
[1738280707415,1.09669963,678.74,678.35,0.905]
[1738280707722,1.09669963,678.74,678.36,0.79450204]
[1738280707918,1.09669963,678.74,678.37,0.79450415]
[1738280708118,1.09669963,678.74,678.35,0.905]
[1738280708119,1.09669963,678.74,678.38,0.79450415]
[1738280708316,1.09669963,678.74,678.39,0.79450415]
[1738280708518,1.09669963,678.74,678.4,0.79450415]
[1738280708718,1.09669963,678.74,678.35,0.905]
[1738280708922,1.09669963,678.74,678.36,0.79448978]
[1738280709222,1.09669963,678.74,678.37,0.79448978]
[1738280709423,1.09669963,678.74,678.38,0.79448978]
[1738280709630,1.39136327,678.74,678.35,0.905]
[1738280709824,1.39136327,678.74,678.36,0.79453005]
[1738280710023,0.29466798,678.73,678.35,0.905]
[1738280710618,0.27096772,678.72,678.35,0.905]
[1738280711023,0.27099235,678.71,678.35,0.905]
[1738280711220,0.27099235,678.7,678.35,0.905]
[1738280711424,0.27099235,678.69,678.35,0.905]
[1738280711725,0.27099235,678.68,678.35,0.905]
[1738280711925,0.27099235,678.67,678.35,0.905]
[1738280712124,0.29469837,678.66,678.35,0.905]
[1738280716233,1.391398,678.66,678.35,0.905]
[1738280718936,0.29469837,678.66,678.35,0.905]
[1738280719537,0.27099694,678.65,678.35,0.905]
[1738280719735,0.29470706,678.64,678.35,0.905]
[1738280720433,0.27099744,678.63,678.35,0.905]
[1738280721238,0.27099678,678.62,678.35,0.905]
[1738280721434,0.27099678,678.61,678.35,0.905]
[1738280721634,0.27099678,678.63,678.35,0.905]
[1738280721839,0.27099678,678.62,678.35,0.905]
[1738280722039,0.27099678,678.63,678.35,0.905]
[1738280722842,0.29470706,678.64,678.35,0.905]
[1738280723041,0.27098857,678.63,678.35,0.905]
[1738280724241,0.29470706,678.64,678.35,0.905]
[1738280724541,1.09669963,678.56,678.35,0.905]
[1738280727744,0.29470706,678.64,678.35,0.905]
[1738280734043,0.27099318,678.63,678.35,0.905]
[1738280737650,1.09669963,678.54,678.35,0.905]
[1738280737849,0.27099318,678.53,678.35,0.905]
[1738280738448,0.27099691,678.52,678.35,0.905]
[1738280738749,0.27099691,678.51,678.35,0.905]
[1738280739049,1.09669963,678.54,678.35,0.905]
[1738280739248,0.27099539,678.53,678.35,0.905]
[1738280740146,0.27099553,678.52,678.35,0.905]
[1738280740346,0.27099553,678.53,678.35,0.905]
[1738280740541,0.27099553,678.52,678.35,0.905]
[1738280740744,0.27099553,678.53,678.35,0.905]
[1738280740944,1.09669963,678.54,678.35,0.905]
[1738280740945,0.27099553,678.52,678.35,0.905]
[1738280741144,0.27099553,678.51,678.35,0.905]
[1738280741350,1.09669963,678.54,678.35,0.905]
[1738280741546,0.27099867,678.53,678.35,0.905]
[1738280741751,0.27099853,678.52,678.35,0.905]
[1738280741955,0.27099853,678.53,678.35,0.905]
[1738280742154,0.27099853,678.52,678.35,0.905]
[1738280742348,0.27099853,678.51,678.35,0.905]
[1738280742552,0.27099853,678.5,678.35,0.905]
[1738280742755,0.27099853,678.53,678.35,0.905]
[1738280742955,1.09669963,678.54,678.35,0.905]
[1738280743150,0.27099645,678.53,678.35,0.905]
[1738280743357,1.09669963,678.54,678.35,0.905]
[1738280743656,0.27099643,678.53,678.35,0.905]
[1738280744356,1.09669963,678.49,678.35,0.905]
[1738280744557,0.27099643,678.48,678.35,0.905]
[1738280747055,0.27099788,678.47,678.35,0.905]
[1738280747255,0.29470706,678.64,678.35,0.905]
[1738280747256,1.09669963,678.4,678.35,0.905]
[1738280750059,1.09669963,678.37,678.35,0.905]
[1738280750758,1.09669963,678.37,677.51,1.10092913]
[1738280750955,1.09669963,678.37,677.52,0.79262022]
[1738280751154,1.09669963,678.37,677.53,0.79262022]
[1738280751356,1.09669963,678.37,677.54,0.79262022]
[1738280751557,1.09669963,678.37,677.55,0.79262022]
[1738280751761,1.09669963,678.37,677.56,0.79262022]
[1738280751962,1.09669963,678.37,677.57,0.79262022]
[1738280752162,1.09669963,678.37,677.58,0.79262022]
[1738280752364,1.09669963,678.37,677.59,0.79262022]
[1738280752662,1.09669963,678.37,677.6,0.79262022]
[1738280752860,1.09669963,678.37,677.55,1.055]
[1738280752861,1.09669963,678.37,677.61,0.79262022]
[1738280753061,1.09669963,678.47,677.62,0.79262022]
[1738280753256,1.09669963,678.47,677.63,0.79262022]
[1738280753461,1.09669963,678.47,677.64,0.79262022]
[1738280753763,1.09669963,678.47,677.65,0.79262022]
[1738280753961,1.09669963,678.47,677.66,0.79262022]
[1738280754155,1.09669963,678.47,677.67,0.79262022]
[1738280754357,1.09669963,678.47,677.68,0.79262022]
[1738280754557,1.09669963,678.47,677.69,0.79262022]
[1738280754863,1.09669963,678.47,677.7,0.79262022]
[1738280755061,1.09669963,678.47,677.71,0.79262022]
[1738280755257,1.09669963,678.47,677.72,0.79262022]
[1738280755562,1.09669963,678.47,677.73,0.79262022]
[1738280755762,1.09669963,678.47,677.74,0.79262022]
[1738280755963,1.09669963,678.47,677.75,0.79262022]
[1738280756257,1.09669963,678.47,677.55,1.055]
[1738280756258,1.09669963,678.47,677.76,0.79262022]
[1738280756461,1.09669963,678.47,677.77,0.79262022]
[1738280756662,1.09669963,678.47,677.78,0.79262022]
[1738280756865,1.09669963,678.47,677.79,0.79262022]
[1738280757164,1.09669963,678.47,677.8,0.79262022]
[1738280757463,1.09669963,678.47,677.55,1.055]
[1738280757464,1.09669963,678.47,677.81,0.79262022]
[1738280757765,1.09669963,678.47,677.82,0.79262022]
[1738280757965,1.09669963,678.47,677.83,0.79262022]
[1738280758162,1.09669963,678.47,677.84,0.79262022]
[1738280758363,1.09669963,678.49,677.85,0.79306281]
[1738280758562,1.09669963,678.49,677.86,0.79306281]
[1738280758764,1.09669963,678.49,677.87,0.79306281]
[1738280759066,1.09669963,678.49,677.88,0.79306281]
[1738280759265,1.09669963,678.49,677.89,0.79306281]
[1738280759458,1.09669963,678.49,677.9,0.79306281]
[1738280759662,1.09669963,678.49,677.91,0.79306281]
[1738280759963,1.09669963,678.49,677.92,0.79306281]
[1738280760159,1.09669963,678.49,677.93,0.79306281]
[1738280760466,1.09669963,678.49,677.94,0.79306281]
[1738280760665,1.09669963,678.49,677.95,0.79313711]
[1738280760865,1.09669963,678.49,677.96,0.79313711]
[1738280761067,1.09669963,678.49,677.97,0.79313711]
[1738280761264,1.09669963,678.43,677.98,0.79313711]
[1738280761565,1.09669963,678.43,677.55,1.055]
[1738280761566,1.09669963,678.43,677.99,0.79313711]
[1738280761769,1.09669963,678.43,678.0,0.79313711]
[1738280762060,1.09669963,678.43,678.01,0.79313711]
[1738280762265,1.09669963,678.43,678.02,0.79330742]
[1738280762469,1.09669963,678.43,678.03,0.79330742]
[1738280762670,1.09669963,678.43,677.55,1.055]
[1738280762671,1.09669963,678.43,678.04,0.79330742]
[1738280762866,1.09669963,678.43,678.05,0.79330742]
[1738280763065,1.09669963,678.43,678.06,0.79330742]
[1738280763268,1.09669963,678.43,678.07,0.79330742]
[1738280763568,1.09669963,678.43,678.08,0.79330742]
[1738280763866,1.09669963,678.43,678.09,0.79330742]
[1738280764060,1.09669963,678.43,678.1,0.79330742]
[1738280764264,1.09669963,678.43,678.11,0.79330742]
[1738280764465,1.09669963,678.43,678.12,0.79330742]
[1738280764661,1.09669963,678.43,678.13,0.79330742]
[1738280764868,1.09669963,678.43,678.14,0.79330742]
[1738280765069,1.09669963,678.43,678.15,0.79330742]
[1738280765266,1.09669963,678.43,678.16,0.79330742]
[1738280765565,1.09669963,678.43,678.17,0.79330742]
[1738280765868,1.09669963,678.43,678.18,0.79330742]
[1738280766069,1.09669963,678.51,678.19,0.79330742]
[1738280766269,1.09669963,678.51,678.2,0.79366259]
[1738280766572,1.09669963,678.51,678.21,0.79365435]
[1738280766865,1.09669963,678.51,678.22,0.79365435]
[1738280767065,1.09669963,678.51,678.23,0.79365435]
[1738280767264,1.09669963,678.51,678.24,0.79365435]
[1738280767466,1.09669963,678.51,678.25,0.79365435]
[1738280767668,1.09669963,678.51,678.26,0.79365435]
[1738280767869,1.09669963,678.51,678.27,0.79365435]
[1738280768068,1.09669963,678.51,678.28,0.79365435]
[1738280768264,1.09669963,678.51,678.29,0.79365435]
[1738280768469,1.09669963,678.51,678.3,0.79365435]
[1738280768668,1.09669963,678.51,678.09,0.977]
[1738280768868,1.09669963,678.51,678.1,0.79392838]
[1738280769064,1.09669963,678.51,678.11,0.79392838]
[1738280769270,1.09669963,678.51,678.12,0.79392838]
[1738280769473,1.09669963,678.51,678.13,0.79392838]
[1738280769769,0.29470706,678.64,678.09,0.977]
[1738280769770,1.09669963,678.58,678.14,0.79392838]
[1738280769970,1.09669963,678.58,678.15,0.79392838]
[1738280770170,1.09669963,678.58,678.16,0.79392838]
[1738280770370,1.09669963,678.58,678.17,0.79392838]
[1738280770570,1.09669963,678.58,678.18,0.79392838]
[1738280770769,1.09669963,678.58,678.19,0.79392838]
[1738280770970,1.09669963,678.58,678.2,0.79392838]
[1738280771165,1.09669963,678.58,678.21,0.79392838]
[1738280771365,1.09669963,678.58,678.22,0.79392838]
[1738280771566,1.09669963,678.58,678.23,0.79392838]
[1738280771770,1.09669963,678.58,678.24,0.79392838]
[1738280771971,1.09669963,678.58,678.09,0.977]
[1738280771972,1.09669963,678.58,678.25,0.79392838]
[1738280772167,1.09669963,678.58,678.26,0.79392838]
[1738280772367,1.09669963,678.58,678.27,0.79392838]
[1738280772675,1.09669963,678.58,678.28,0.79392838]
[1738280772873,0.27097972,678.57,678.29,0.79392838]
[1738280773074,0.27097972,678.57,678.09,0.977]
[1738280773270,0.27097972,678.57,678.1,0.79417534]
[1738280773573,0.27097972,678.57,678.11,0.79417534]
[1738280773867,0.27097972,678.57,678.12,0.79417534]
[1738280774071,0.27097972,678.57,678.13,0.79417534]
[1738280774271,0.27098208,678.56,678.14,0.79417534]
[1738280774475,0.27098208,678.55,678.09,0.977]
[1738280774674,0.27098208,678.57,678.1,0.79416731]
[1738280774869,0.27098208,678.57,678.09,0.977]
[1738280774870,0.27098208,678.56,678.11,0.79416731]
[1738280775172,0.27098208,678.55,678.12,0.79416731]
[1738280775373,0.27098208,678.57,678.13,0.79416731]
[1738280775573,0.27098208,678.56,678.14,0.79416731]
[1738280775774,0.27098208,678.56,678.09,0.977]
[1738280775775,0.27098208,678.57,678.15,0.79416731]
[1738280775976,0.27098208,678.57,678.16,0.79416731]
[1738280776172,0.27098208,678.57,678.17,0.79416731]
[1738280776374,1.09669963,678.46,678.18,0.79416731]
[1738280776574,1.09669963,678.46,678.19,0.79416731]
[1738280776774,1.09669963,678.46,678.2,0.79416731]
[1738280777075,1.09669963,678.46,678.21,0.79416731]
[1738280777275,1.09669963,678.46,678.22,0.79416731]
[1738280777469,1.09669963,678.46,678.23,0.79416731]
[1738280777774,1.09669963,678.46,678.24,0.79416731]
[1738280777977,1.09669963,678.46,678.25,0.79416731]
[1738280778175,1.09669963,678.46,678.26,0.79416731]
[1738280778474,1.09669963,678.46,678.27,0.79416731]
[1738280778674,1.09669963,678.46,678.26,0.888]
[1738280778870,1.09669963,678.46,678.27,0.79415906]
[1738280779073,1.09669963,678.46,678.26,0.888]
[1738280779274,1.09669963,678.46,678.27,0.79415906]
[1738280779475,1.09669963,678.46,678.28,0.79415906]
[1738280779676,1.09669963,678.46,678.26,0.888]
[1738280779876,1.09669963,678.46,678.27,0.79415121]
[1738280780176,1.09669963,678.46,678.26,0.888]
[1738280780472,1.09669963,678.46,678.27,0.794148]
[1738280780776,1.09669963,678.46,678.26,0.888]
[1738280780975,1.09669963,678.46,678.27,0.794148]
[1738280781173,1.09669963,678.46,678.26,0.888]
[1738280781374,1.09669963,678.46,678.27,0.79414556]
[1738280781575,1.09669963,678.46,678.26,0.888]
[1738280781877,1.09669963,678.46,678.27,0.79414556]
[1738280782171,1.09669963,678.46,678.28,0.79414556]
[1738280782377,1.09669963,678.45,678.26,0.888]
[1738280782672,1.09669963,678.45,678.27,0.79413289]
[1738280782877,1.09669963,678.45,678.28,0.79413558]
[1738280783077,1.09669963,678.45,678.29,0.79411057]
[1738280783277,1.09669963,678.45,678.26,0.888]
[1738280783572,1.09669963,678.45,678.27,0.79409559]
[1738280783776,1.09669963,678.45,678.28,0.79409559]
[1738280783976,1.09669963,678.45,678.29,0.79409559]
[1738280784176,1.09669963,678.45,678.26,0.888]
[1738280784377,1.09669963,678.45,678.27,0.79409217]
[1738280784579,1.09669963,678.45,678.28,0.79409217]
[1738280784773,1.09669963,678.45,678.26,0.888]
[1738280784971,1.09669963,678.45,678.27,0.79410725]
[1738280785176,1.09669963,678.45,678.28,0.79410725]
[1738280785480,0.27098135,678.44,678.26,0.888]
[1738280785778,1.09669963,678.45,678.27,0.7940955]
[1738280785973,1.09669963,678.45,678.28,0.7940955]
[1738280786178,1.09669963,678.45,678.26,0.888]
[1738280786179,0.27098071,678.44,678.26,0.888]
[1738280786374,0.27098071,678.46,678.27,0.79409663]
[1738280786576,1.09669963,678.47,678.28,0.79409199]
[1738280786780,0.27098049,678.46,678.26,0.888]
[1738280786980,0.27098049,678.46,678.27,0.79409004]
[1738280787180,0.27098049,678.46,678.28,0.79409004]
[1738280787379,0.27098049,678.46,678.26,0.888]
[1738280787578,0.2709807,678.45,678.27,0.79408187]
[1738280787774,0.2709807,678.46,678.28,0.79408187]
[1738280787975,0.2709807,678.45,678.26,0.888]
[1738280788175,0.2709807,678.46,678.27,0.79407958]
[1738280788380,0.27098021,678.45,678.28,0.79407958]
[1738280788580,1.09669963,678.47,678.26,0.888]
[1738280788781,0.27098039,678.46,678.27,0.794066]
[1738280788980,0.27098039,678.46,678.28,0.794066]
[1738280789280,0.2709771,678.45,678.29,0.794066]
[1738280789476,0.2709771,678.46,678.26,0.888]
[1738280789682,0.29470706,678.64,678.26,0.888]
[1738280789683,1.09669963,678.42,678.27,0.79405429]
[1738280789881,1.09669963,678.42,678.26,0.888]
[1738280789882,1.09669963,678.42,678.28,0.79405429]
[1738280790082,1.09669963,678.42,678.29,0.79405429]
[1738280790384,1.09669963,678.42,678.26,0.888]
[1738280790580,1.09669963,678.42,678.27,0.79404316]
[1738280790781,1.09669963,678.42,678.26,0.888]
[1738280790782,1.09669963,678.42,678.28,0.79404316]
[1738280790982,1.09669963,678.42,678.26,0.888]
[1738280791186,1.09669963,678.42,678.27,0.79404516]
[1738280791386,1.09669963,678.42,678.28,0.79404516]
[1738280791587,1.09669963,678.42,678.29,0.79404516]
[1738280791786,1.09669963,678.42,678.26,0.888]
[1738280791984,1.09669963,678.42,678.27,0.794031]
[1738280792190,1.09669963,678.42,678.26,0.888]
[1738280792391,1.09669963,678.42,678.27,0.79404665]
[1738280792590,1.09669963,678.42,678.28,0.79404665]
[1738280792791,1.09669963,678.42,678.26,0.888]
[1738280792990,1.09669963,678.42,678.27,0.79404693]
[1738280793291,1.09669963,678.42,678.26,0.888]
[1738280793487,1.09669963,678.42,678.27,0.79404842]
[1738280793688,1.09669963,678.42,678.26,0.888]
[1738280795494,0.27099419,678.41,678.26,0.888]
[1738280795695,0.74571126,678.63,678.26,0.888]
[1738280795696,1.09669963,678.4,678.26,0.888]
[1738280799496,1.09669963,678.37,678.26,0.888]
[1738280806601,1.09669963,678.35,678.26,0.888]
[1738280809604,0.29470706,678.64,678.26,0.888]
[1738280814804,0.29470706,678.64,678.27,0.79422237]
[1738280815009,0.29470706,678.64,677.24,1.10092913]
[1738280815205,0.29470706,678.64,677.25,1.0895372]
[1738280815407,0.29470706,678.64,677.26,0.79422528]
[1738280815607,0.29470706,678.64,677.27,0.79422528]
[1738280815811,0.27098128,678.63,677.28,1.0525148]
[1738280816107,0.27098128,678.63,677.29,1.0525148]
[1738280816310,0.27098128,678.63,677.3,1.0525148]
[1738280816512,0.27098128,678.63,677.31,1.0525148]
[1738280816811,0.27098128,678.63,677.32,1.0525148]
[1738280817011,0.27098128,678.63,677.33,1.0525148]
[1738280817209,0.27098128,678.63,677.34,1.0525148]
[1738280817410,0.27098128,678.63,677.35,0.79422528]
[1738280817611,0.27098128,678.63,677.36,0.79422528]
[1738280817908,0.27098128,678.63,677.37,0.79422528]
[1738280818109,0.27098128,678.63,677.38,0.79422528]
[1738280818410,0.27098128,678.63,677.39,0.79422528]
[1738280818611,0.27098128,678.63,677.4,0.79422528]
[1738280818811,0.27098128,678.63,677.41,0.79422528]
[1738280819013,0.27098128,678.63,677.35,1.53953349]
[1738280819213,0.27098128,678.63,677.36,0.79434217]
[1738280819512,0.27098128,678.63,677.37,0.79434217]
[1738280819710,0.27098128,678.63,677.38,0.79434217]
[1738280819912,0.27098128,678.63,677.39,0.79434217]
[1738280820112,0.27098128,678.63,677.4,0.79434217]
[1738280820310,0.27098128,678.63,677.41,0.79434217]
[1738280820509,0.29470706,678.64,677.35,1.53953349]
[1738280820510,1.09669963,678.54,677.42,0.79434217]
[1738280820710,1.09669963,678.54,677.43,0.79434944]
[1738280820913,1.09669963,678.54,677.44,0.79434944]
[1738280821211,1.09669963,678.54,677.45,0.79434944]
[1738280821412,1.09669963,678.54,677.46,0.79434944]